bitfinex-derivatives/quotes_ETHF0:USTF0_20250606
["timestamp","ask_amount","ask_price","bid_price","bid_amount"]
[1749239312692,4.01014,2490.9,2490.8,0.80235]
[1749239314405,8.81214,2490.9,2490.8,0.80235]
[1749239314690,8.0098,2490.9,2490.6,0.00600998]
[1749239314993,8.0098,2490.9,2490.6,0.80841998]
[1749239314994,0.80238,2490.7,2490.6,0.80841998]
[1749239315391,0.80238,2490.7,2490.6,0.00600998]
[1749239315593,0.80238,2490.7,2490.6,0.80841998]
[1749239315787,0.80238,2490.7,2490.6,0.00600998]
[1749239316187,0.80258,2490.1,2490.0,2.11807]
[1749239317392,0.80256,2490.2,2490.1,0.80254]
[1749239319288,3.21382216,2490.3,2490.0,1.3155]
[1749239319289,0.80258,2490.1,2490.0,2.11809]
[1749239319597,0.80258,2490.2,2490.1,0.80254]
[1749239320090,0.00602216,2490.3,2490.2,0.80254]
[1749239321388,3.2078,2490.9,2490.8,0.80235]
[1749239321689,0.80237,2490.8,2490.7,0.80236]
[1749239322594,0.80238,2490.7,2490.6,1.3436]
[1749239323092,0.80238,2490.7,2490.6,2.14601]
[1749239323594,5.21363,2490.9,2490.5,0.80244]
[1749239323794,4.01021,2490.6,2490.5,0.80244]
[1749239324191,0.80248,2490.4,2490.3,0.6932]
[1749239324397,0.80251,2490.3,2490.2,1.43533]
[1749239324693,4.01031,2490.4,2490.3,0.80249]
[1749239324998,0.80251,2490.3,2490.2,1.43533]
[1749239325189,0.80264,2489.9,2489.8,3.21184724]
[1749239325390,8.81244,2489.9,2489.8,0.00404724]
[1749239325593,9.9572564,2489.9,2489.8,0.00404724]
[1749239326296,9.9572564,2489.9,2489.8,0.80671724]
[1749239327201,14.1546164,2489.9,2488.8,5.21525]
[1749239327501,0.80275,2489.6,2489.5,0.80276]
[1749239327799,0.80275,2489.6,2489.4,0.80278]
[1749239327998,1.1448164,2489.6,2489.2,1.9317]
[1749239328196,4.803,2489.7,2489.6,0.80274]
[1749239328395,5.94810133,2489.7,2489.6,0.80274]
[1749239328596,1.14510133,2489.7,2489.6,0.80274]
[1749239329404,1.94780133,2489.7,2489.6,0.80274]
[1749239329699,1.14510133,2489.7,2489.6,0.80274]
[1749239330105,0.80271,2489.7,2489.6,0.80272]
[1749239330395,0.80275,2489.6,2489.5,0.80276]
[1749239330694,1.1471446,2489.6,2489.5,0.80276]
[1749239334700,1.9498846,2489.6,2489.5,0.80276]
[1749239334898,1.1471446,2489.6,2489.5,0.80276]
[1749239335102,6.3618046,2489.6,2489.3,0.6755]
[1749239335299,0.80283,2489.3,2489.2,0.00602216]
[1749239335597,4.01063,2489.3,2489.2,0.00602216]
[1749239335804,5.1577746,2489.3,2489.2,0.00602216]
[1749239339609,1.1471446,2489.3,2489.2,0.80889216]
[1749239340802,3.2078,2489.6,2489.5,0.80277]
[1749239341009,1.14202175,2489.6,2489.5,0.80277]
[1749239341814,1.14202175,2489.6,2489.5,2.18087]
[1749239343013,1.14202175,2489.6,2489.5,5.38867]
[1749239344517,0.80283,2489.3,2489.2,0.00602216]
[1749239344809,3.2078,2489.3,2489.2,0.80889216]
[1749239345009,1.14202175,2489.3,2489.2,0.80889216]
[1749239348816,4.805,2489.8,2489.7,0.8027]
[1749239349017,5.93623198,2489.8,2489.7,0.8027]
[1749239349218,1.13123198,2489.8,2489.7,0.8027]
[1749239349517,1.93390198,2489.8,2489.7,0.8027]
[1749239349917,1.13123198,2489.8,2489.7,0.8027]
[1749239351217,3.2078,2490.4,2489.9,2.00658]
[1749239351412,0.80254,2490.3,2490.2,0.80253]
[1749239351619,0.80258,2490.2,2490.1,0.80257]
[1749239352111,0.80256,2490.2,2490.1,0.80255]
[1749239352318,2.00638,2490.2,2489.8,0.6276]
[1749239352518,0.80264,2489.9,2489.8,1.43026]
[1749239353421,0.80264,2489.9,2489.8,0.6276]
[1749239353622,0.80268,2489.8,2489.7,0.80269]
[1749239354023,0.80267,2489.9,2489.8,0.80266]
[1749239354221,2.84003,2490.0,2489.9,0.80264]
[1749239355022,3.18461518,2490.3,2489.5,5.1701]
[1749239355224,2.11131,2490.3,2490.2,0.80254]
[1749239355423,0.80258,2490.2,2490.1,0.80255]
[1749239356124,1.3088,2490.3,2490.2,0.80254]
[1749239356423,4.67812216,2490.4,2490.3,0.80251]
[1749239356621,0.80253,2490.3,2490.2,0.80252]
[1749239357023,0.80258,2490.2,2490.1,0.80256]
[1749239358325,0.80254,2490.3,2490.2,0.80252]
[1749239358532,5.18442216,2490.4,2490.0,1.3416]
[1749239358725,0.80254,2490.3,2490.2,0.80252]
[1749239360026,3.21382216,2490.4,2490.3,0.80251]
[1749239360324,0.80850216,2490.4,2490.3,0.80251]
[1749239360727,0.00602216,2490.4,2490.3,0.80251]
[1749239362224,0.80850216,2490.4,2490.3,0.80251]
[1749239362624,0.00602216,2490.4,2490.3,0.80251]
[1749239362825,0.80850216,2490.4,2490.3,0.80251]
[1749239364423,0.00602216,2490.4,2490.3,0.80251]
[1749239368228,4.01015,2490.8,2490.7,0.80238]
[1749239368428,5.13406573,2490.8,2490.7,0.80238]
[1749239369027,4.33171573,2490.8,2490.7,0.80238]
[1749239369530,0.80238,2490.7,2490.6,2.12929]
[1749239369733,1.12391573,2490.7,2490.6,2.12929]
[1749239370028,1.92629573,2490.7,2490.6,2.12929]
[1749239370633,1.12391573,2490.7,2490.6,2.12929]
[1749239371229,1.92629573,2490.7,2490.6,2.12929]
[1749239371633,1.12391573,2490.7,2490.6,2.12929]
[1749239372032,1.92629573,2490.7,2490.6,2.12929]
[1749239372227,0.80241,2490.6,2490.5,0.00602216]
[1749239372425,2.82911,2490.6,2490.5,0.80847216]
[1749239372731,3.95333696,2490.6,2490.5,0.00602216]
[1749239373629,0.80264,2489.9,2489.8,0.80265]
[1749239373833,0.80273,2489.7,2489.6,0.80273]
[1749239374035,0.80274,2489.6,2489.5,1.43505]
[1749239374235,4.01052,2489.7,2489.6,0.80274]
[1749239375429,3.2078,2489.7,2489.6,0.80274]
[1749239376632,0.00602216,2489.9,2489.8,0.80267]
[1749239376841,0.00602216,2489.9,2489.8,4.01047]
[1749239379438,0.80232,2490.9,2490.8,0.80233]
[1749239379630,0.8024,2490.7,2490.6,0.8024]
[1749239379833,2.07077,2490.8,2490.7,0.80238]
[1749239380036,3.19552224,2490.8,2490.7,0.80238]
[1749239380541,2.39315224,2490.8,2490.7,0.80238]
[1749239380738,3.19550224,2490.8,2490.7,0.80238]
[1749239381134,2.39315224,2490.8,2490.7,0.80238]
[1749239381434,3.19550224,2490.8,2490.7,0.80238]
[1749239382037,0.80244,2490.6,2490.5,0.80241]
[1749239382236,1.92719224,2490.6,2490.5,0.80241]
[1749239382943,1.12475224,2490.6,2490.5,0.80241]
[1749239383338,2.50095224,2490.6,2490.5,0.80241]
[1749239383841,3.30336224,2490.6,2490.5,0.80241]
[1749239384142,2.50095224,2490.6,2490.5,0.80241]
[1749239385445,1.12475224,2490.6,2490.5,0.80241]
[1749239386545,0.80239,2490.7,2490.6,0.80238]
[1749239386744,1.92892282,2490.7,2490.6,0.80238]
[1749239387045,1.12653282,2490.7,2490.6,0.80238]
[1749239387446,1.92891282,2490.7,2490.6,0.80238]
[1749239388754,1.12653282,2490.7,2490.6,0.80238]
[1749239389545,1.92891282,2490.7,2490.6,0.80238]
[1749239389745,1.12653282,2490.7,2490.6,0.80238]
[1749239390150,0.80238,2490.8,2490.7,0.80238]
[1749239390449,1.92901246,2490.8,2490.7,0.80238]
[1749239390843,0.80241,2490.7,2490.6,0.80239]
[1749239391045,3.25554246,2490.7,2490.6,0.80239]
[1749239392554,0.80245,2490.6,2490.5,0.80241]
[1749239392849,0.8025,2490.5,2490.4,0.80245]
[1749239393050,1.92913246,2490.5,2490.4,0.80245]
[1749239393252,3.25563246,2490.5,2490.4,0.80245]
[1749239393550,2.45313246,2490.5,2490.4,0.80245]
[1749239393752,3.25558246,2490.5,2490.4,0.80245]
[1749239394051,0.80251,2490.4,2490.3,0.80248]
[1749239394253,3.26744246,2490.4,2490.3,0.80248]
[1749239394752,2.46493246,2490.4,2490.3,0.80248]
[1749239395253,3.26741246,2490.4,2490.3,0.80248]
[1749239395447,2.46485362,2490.4,2490.3,0.80248]
[1749239395752,3.26733362,2490.4,2490.3,0.80248]
[1749239396351,2.46485362,2490.4,2490.1,3.2078]
[1749239396552,1.12655362,2490.3,2490.2,0.80251]
[1749239399657,1.92906362,2490.3,2490.2,0.80251]
[1749239399955,1.12655362,2490.3,2490.2,0.80251]
[1749239400351,0.00602216,2491.0,2490.9,0.80232]
[1749239400554,0.00602216,2491.0,2490.9,8.87812]
[1749239400754,0.00602216,2491.0,2490.9,4.01012]
[1749239401050,0.80831216,2491.0,2490.9,3.2078]
[1749239401251,0.00602216,2491.0,2490.8,1.3592]
[1749239401451,0.80235,2490.8,2490.7,0.00602216]
[1749239401753,0.80235,2490.8,2490.7,0.80840216]
[1749239402058,6.94675,2490.8,2490.7,0.00602216]
[1749239402761,6.1444,2490.8,2490.7,0.80840216]
[1749239403258,6.94675,2490.8,2490.7,0.00602216]
[1749239403459,6.94675,2490.8,2490.7,0.80840216]
[1749239403460,1.2764,2490.8,2490.7,0.80840216]
[1749239403657,0.00602216,2491.0,2490.9,0.80232]
[1749239403859,2.16e-06,2491.0,2490.9,13.87812]
[1749239404052,2.16e-06,2491.0,2490.9,15.25892]
[1749239406461,2.16e-06,2491.0,2490.9,10.25892]
[1749239407161,2.16e-06,2491.0,2490.9,5.39092]
[1749239407353,2.16e-06,2491.0,2490.9,10.25892]
[1749239408857,2.16e-06,2491.0,2490.9,4.01012]
[1749239409063,2.16e-06,2491.0,2490.9,8.87712]
[1749239411661,2.16e-06,2491.0,2490.9,10.15022]
[1749239412064,2.16e-06,2491.0,2490.9,8.87712]
[1749239412263,2.16e-06,2491.0,2490.9,8.88712]
[1749239412458,2.16e-06,2491.0,2490.9,4.01012]
[1749239412762,1.27930216,2491.0,2490.9,4.01012]
[1749239413068,2.16e-06,2491.0,2490.9,4.01012]
[1749239415861,2.16e-06,2491.0,2490.7,2.01197216]
[1749239415862,2.16e-06,2491.0,2490.7,0.00602216]
[1749239416062,0.80235,2490.8,2490.7,0.00602216]
[1749239416257,0.80234,2490.9,2490.7,0.00602216]
[1749239416563,1.265,2490.8,2490.7,0.80840216]
[1749239417065,0.65260216,2491.0,2490.9,0.80232]
[1749239417262,1.45488216,2491.0,2490.9,4.01012]
[1749239417670,2.57438301,2491.0,2490.9,3.2078]
[1749239417964,0.80235,2490.9,2490.8,0.80234]
[1749239418167,3.18685085,2490.9,2490.8,0.80234]
[1749239418571,0.80235,2490.8,2490.7,0.00602216]
[1749239418869,3.25945085,2490.8,2490.7,0.00602216]
[1749239420169,0.80248,2490.4,2490.3,3.2078]
[1749239420468,1.92198085,2490.4,2490.3,3.2078]
[1749239420870,3.25958085,2490.4,2490.3,3.2078]
[1749239421571,0.80254,2490.2,2490.1,0.80857216]
[1749239422474,0.6957,2490.5,2490.4,0.80248]
[1749239423167,1.49815,2490.5,2490.4,0.80248]
[1749239423374,0.80254,2490.2,2490.1,0.80856216]
[1749239424768,1.3325,2490.4,2490.3,0.80251]
[1749239424969,2.44917154,2490.4,2490.3,0.80251]
[1749239425172,1.3325,2490.4,2490.3,0.80251]
[1749239425877,1.49815,2490.5,2490.4,0.80248]
[1749239426076,2.61845028,2490.5,2490.4,0.80248]
[1749239426268,3.89075028,2490.5,2490.4,0.80248]
[1749239426774,0.80251,2490.4,2490.3,0.80249]
[1749239427676,2.77046,2490.5,2490.4,0.80248]
[1749239427876,1.81518563,2490.5,2490.4,0.80248]
[1749239428174,0.80249,2490.5,2490.4,0.80245]
[1749239431273,0.80244,2490.6,2490.5,0.80241]
[1749239431579,3.2078,2490.8,2490.7,0.80238]
[1749239431776,2.16e-06,2491.0,2490.8,0.80233]
[1749239431971,0.80236,2490.9,2490.8,0.80233]
[1749239432277,0.80236,2490.9,2490.8,3.2078]
[1749239432777,0.80236,2490.9,2490.8,4.01015]
[1749239432977,0.80231216,2491.0,2490.9,0.80232]
[1749239433271,1.92167662,2491.0,2490.9,0.80232]
[1749239433675,1.11937662,2491.0,2490.9,0.80232]
[1749239433875,2.16e-06,2491.0,2490.9,0.80232]
[1749239434074,0.80232,2490.9,2490.8,3.2078]
[1749239434270,0.80238,2490.7,2490.6,1.47199]
[1749239434470,0.80238,2490.7,2490.6,0.6696]
[1749239434873,2.15848,2490.7,2490.6,0.6696]
[1749239435379,0.80241,2490.6,2490.5,4.01025]
[1749239435674,2.15849,2490.7,2490.6,0.80241]
[1749239436181,0.6586,2490.8,2490.7,0.80238]
[1749239436770,1.46095,2490.8,2490.7,0.80238]
[1749239436972,0.6586,2490.8,2490.7,0.80238]
[1749239437173,1.46095,2490.8,2490.7,0.80238]
[1749239437375,0.6586,2490.8,2490.7,0.80238]
[1749239437577,1.46095,2490.8,2490.7,0.80238]
[1749239437879,0.6586,2490.8,2490.7,0.80238]
[1749239438485,2.16e-06,2491.0,2490.8,0.80232]
[1749239438687,1.92346355,2490.9,2490.8,4.01012]
[1749239438986,4.32894355,2490.9,2489.7,2.00673]
[1749239439187,0.80254,2490.2,2489.6,3.883]
[1749239439382,1.92310934,2490.2,2489.6,5.88981]
[1749239439683,1.92310934,2490.2,2490.1,0.80859216]
[1749239439684,1.12056934,2490.2,2490.1,0.80859216]
[1749239439885,1.92310934,2490.2,2490.1,0.00602216]
[1749239440087,3.22740934,2490.2,2490.1,0.00602216]
[1749239440283,0.8027,2489.7,2489.6,0.6752]
[1749239440489,0.80269,2489.8,2489.7,0.8027]
[1749239441389,0.8027,2489.7,2489.6,1.47793]
[1749239441592,0.80274,2489.6,2489.5,3.21382216]
[1749239441787,2.10704,2489.6,2489.5,3.21382216]
[1749239441985,3.2264963,2489.6,2489.5,3.21382216]
[1749239442492,2.10704,2489.6,2489.5,0.00602216]
[1749239442691,3.22502347,2489.6,2489.5,0.00602216]
[1749239444687,6.43282347,2489.6,2489.5,0.00602216]
[1749239447087,0.80293,2489.1,2488.9,3.2078]
[1749239447383,2.00722,2489.2,2488.6,3.2078]
[1749239447586,4.938,2489.2,2488.9,3.2078]
[1749239447895,0.80293,2489.0,2488.9,0.80293]
[1749239448394,0.80291,2489.1,2489.0,0.80293]
[1749239449196,0.80293,2489.0,2488.9,4.01076]
[1749239451196,0.80292,2489.1,2489.0,0.8029]
[1749239451391,5.74690216,2489.2,2489.1,0.8029]
[1749239452097,0.00602216,2489.2,2489.0,0.80291]
[1749239452298,0.00602216,2489.2,2488.9,3.2078]
[1749239452299,0.00602216,2489.2,2489.1,0.8029]
[1749239452596,0.80891216,2489.2,2489.1,0.8029]
[1749239453992,0.00602216,2489.2,2489.1,0.8029]
[1749239454500,0.00602216,2489.2,2489.1,2.1223]
[1749239454797,2.005,2489.8,2489.5,2.00691]
[1749239454997,2.00651,2490.1,2489.6,2.66828]
[1749239454998,0.651,2490.1,2489.6,2.66828]
[1749239455295,0.80265,2490.0,2489.9,0.80261]
[1749239455492,5.74158,2490.1,2490.0,0.80261]
[1749239455692,0.6488,2490.2,2489.8,3.2078]
[1749239455693,0.80256,2490.2,2489.8,5.21448]
[1749239455893,0.00602216,2490.2,2490.1,0.80258]
[1749239456900,0.00602216,2490.2,2490.1,4.01038]
[1749239457494,0.00602216,2490.2,2490.1,10.39828]
[1749239457690,0.00602216,2490.2,2490.1,15.33728]
[1749239458399,0.00602216,2490.2,2490.1,5.39828]
[1749239458596,0.00602216,2490.2,2490.1,10.33728]
[1749239460598,3.98076898,2490.4,2490.3,0.80251]
[1749239461101,3.98076898,2490.4,2490.3,5.80251]
[1749239461400,7.79513935,2491.4,2491.3,0.80219]
[1749239461597,12.73846075,2491.9,2491.8,0.80203]
[1749239461798,12.73846075,2491.9,2491.8,8.94783]
[1749239462002,0.802,2491.9,2491.8,3.2078]
[1749239462500,1.2871,2492.0,2491.4,4.5475]
[1749239462800,2.08909,2492.0,2491.8,0.80202]
[1749239462996,0.80205,2491.8,2491.6,0.80208]
[1749239463496,1.2871,2491.7,2491.4,4.5475]
[1749239463700,1.2871,2491.7,2491.6,0.80209]
[1749239463905,2.08917,2491.7,2491.5,0.8021]
[1749239464104,1.2871,2491.7,2491.6,0.80209]
[1749239464300,1.2871,2491.7,2491.5,0.80211]
[1749239464606,1.2871,2491.7,2491.4,4.5475]
[1749239464801,1.2871,2491.7,2491.6,0.80209]
[1749239465197,0.8021,2491.6,2491.4,4.5475]
[1749239465402,0.80212,2491.5,2491.4,3.9011]
[1749239465601,2.14842,2491.5,2491.4,3.2078]
[1749239466398,2.14842,2491.5,2491.1,0.80826216]
[1749239466399,0.80222,2491.2,2491.1,0.80826216]
[1749239466596,0.80221,2491.3,2491.2,0.80221]
[1749239466796,1.3463,2491.5,2491.1,0.00602216]
[1749239467197,0.80216,2491.4,2491.3,0.80216]
[1749239467401,1.3463,2491.5,2491.1,0.00602216]
[1749239467603,0.80222,2491.2,2491.1,0.00602216]
[1749239468007,0.80222,2491.2,2491.1,0.80827216]
[1749239468199,0.80222,2491.2,2489.8,2.00666]
[1749239468200,37.4268,2491.2,2489.8,2.00666]
[1749239468399,3.2078,2490.7,2489.8,0.6911]
[1749239468594,2.00628,2490.3,2489.8,0.6911]
[1749239468803,8.27176,2490.2,2489.7,3.898]
[1749239468997,0.80263,2490.0,2489.9,0.80263]
[1749239469194,0.80265,2489.9,2489.8,0.80265]
[1749239470104,6.27142216,2490.2,2489.8,0.80264]
[1749239470306,0.00602216,2490.2,2490.1,0.80258]
[1749239470502,0.80259,2490.1,2490.0,0.8026]
[1749239471509,0.80259,2490.1,2490.0,0.80261]
[1749239471905,0.80859216,2490.2,2490.0,0.80261]
[1749239472107,2.19789216,2490.2,2490.0,0.80261]
[1749239472608,0.80261,2490.0,2489.9,0.80263]
[1749239472906,0.80267,2489.8,2489.7,0.00602216]
[1749239473108,13.98747,2489.8,2489.7,2.16e-06]
[1749239473408,41.28747,2489.8,2489.7,2.16e-06]
[1749239473608,41.96717,2489.8,2489.7,2.16e-06]
[1749239473912,43.33367,2489.8,2489.7,2.16e-06]
[1749239475808,44.26552762,2489.8,2489.7,2.16e-06]
[1749239476111,62.17267,2489.8,2489.7,2.16e-06]
[1749239476812,43.33367,2489.8,2489.7,2.16e-06]
[1749239477007,43.33467,2489.8,2489.7,2.16e-06]
[1749239477208,16.03467,2489.8,2489.7,2.16e-06]
[1749239477408,6.05667,2489.8,2489.7,2.16e-06]
[1749239477709,11.03467,2489.8,2489.7,2.16e-06]
[1749239478498,6.05667,2489.8,2489.7,2.16e-06]
[1749239478705,7.14717,2489.8,2489.7,2.16e-06]
[1749239478901,5.78067,2489.8,2489.7,2.16e-06]
[1749239479104,13.98847,2489.8,2489.7,2.16e-06]
[1749239479617,16.97978944,2489.8,2489.7,2.16e-06]
[1749239479807,17.66148944,2489.8,2489.7,2.16e-06]
[1749239482908,12.68348944,2489.8,2489.7,2.16e-06]
[1749239483110,0.80326,2488.0,2487.9,0.80328]
[1749239483310,0.80323,2488.1,2487.6,5.21622]
[1749239483516,2.00773,2488.5,2487.9,3.2078]
[1749239483814,1.34,2488.6,2487.9,3.2078]
[1749239484016,0.8032,2488.2,2488.1,0.8032]
[1749239484219,5.7822,2488.2,2488.1,0.8032]
[1749239486014,4.98,2488.4,2488.1,5.0]
[1749239486214,4.98602216,2488.5,2488.4,0.80312]
[1749239486615,0.00602216,2488.5,2488.4,0.80312]
[1749239487217,0.00602216,2488.5,2488.2,5.8015]
[1749239487410,0.80316,2488.3,2488.2,4.5015]
[1749239487617,5.78316,2488.3,2488.2,0.656]
[1749239487821,0.80322,2488.1,2488.0,0.00602001]
[1749239488021,4.01102,2488.1,2488.0,0.00602001]
[1749239488423,5.78322,2488.1,2488.0,0.00602001]
[1749239488915,4.98602216,2488.5,2488.0,7.01414001]
[1749239489123,0.80312,2488.4,2488.3,0.80315]
[1749239489316,0.80317,2488.3,2488.2,0.80316]
[1749239489615,0.80317,2488.3,2488.2,2.09396]
[1749239490015,0.80319,2488.2,2488.1,4.64421]
[1749239490215,0.00602216,2488.5,2488.1,3.841]
[1749239490516,0.00602216,2488.5,2488.3,0.80313]
[1749239490725,0.80318,2488.3,2488.1,5.1318]
[1749239490920,0.80318,2488.3,2488.2,0.80318]
[1749239491216,0.80319,2488.2,2488.1,0.6332]
[1749239491822,0.80348,2487.3,2487.2,3.2078]
[1749239492119,0.80347,2487.4,2487.3,0.80347]
[1749239492922,5.78444,2487.5,2487.4,0.80345]
[1749239493118,3.2078,2487.9,2487.2,3.2078]
[1749239493324,26.30996,2488.3,2487.9,0.80328]
[1749239493622,6.98901,2488.2,2487.5,3.2078]
[1749239493818,2.00813,2488.1,2487.6,2.0556]
[1749239494115,0.8033,2487.9,2487.8,0.8033]
[1749239495014,0.8033,2487.9,2487.8,2.1294]
[1749239495221,0.8033,2487.9,2487.7,0.6739]
[1749239495222,0.80333,2487.8,2487.7,0.6739]
[1749239495621,0.80333,2487.8,2487.7,2.0]
[1749239495922,0.80332,2487.9,2487.8,0.80331]
[1749239496111,0.80332,2487.9,2487.8,2.12941]
[1749239497421,0.80332,2487.9,2487.8,53.76938]
[1749239498320,2.08102,2487.9,2487.8,53.76938]
[1749239498627,2.08102,2487.9,2487.8,107.5107]
[1749239499029,7.75102,2487.9,2487.8,107.5107]
[1749239499322,8.70314751,2487.9,2487.8,107.5107]
[1749239500025,0.80332,2487.9,2487.8,108.31403]
[1749239500721,9.09308,2488.0,2487.9,0.80329]
[1749239501023,5.082,2488.1,2487.9,1.9823]
[1749239501220,5.082,2488.1,2488.0,0.80322]
[1749239501424,0.80326,2488.0,2487.9,0.689]
[1749239501925,0.80329,2487.9,2487.8,107.5107]
[1749239502541,0.80329,2487.9,2487.8,108.31402]
[1749239502826,0.80329,2487.9,2487.8,107.5107]
[1749239505223,5.082,2488.0,2487.9,0.80329]
[1749239505431,5.082,2488.0,2487.9,2.14469]
[1749239506524,5.88526,2488.0,2487.9,2.14469]
[1749239506824,5.88526,2488.0,2487.9,1.3414]
[1749239507019,0.80329,2487.9,2487.8,107.5107]
[1749239507526,0.80329,2487.9,2487.8,108.31403]
[1749239507921,0.80329,2488.0,2487.9,0.80326]
[1749239508117,0.80329,2488.0,2487.9,2.17696]
[1749239509533,1.75999724,2488.0,2487.9,2.17696]
[1749239510128,0.80329,2488.0,2487.9,2.17696]
[1749239510330,1.75979674,2488.0,2487.9,1.3737]
[1749239510632,0.80329,2487.9,2487.8,107.5107]
[1749239511634,1.76087057,2487.9,2487.8,107.5107]
[1749239512031,0.80329,2487.9,2487.8,107.5107]
[1749239512230,1.76072402,2487.9,2487.8,107.5107]
[1749239513633,1.76072402,2487.9,2487.8,108.31403]
[1749239514035,1.76072402,2487.9,2487.8,107.5107]
[1749239514334,20.65672402,2487.9,2487.8,107.5107]
[1749239514531,20.65672402,2487.9,2487.8,108.31403]
[1749239514730,0.95743402,2487.9,2487.8,113.31403]
[1749239515033,0.80324,2488.2,2488.1,0.80321]
[1749239515225,19.70119,2488.3,2488.2,0.80316]
[1749239515430,20.67684368,2488.3,2488.2,0.80316]
[1749239515933,1.77884368,2488.3,2488.2,0.80316]
[1749239516636,0.97565368,2488.3,2488.2,0.80316]
[1749239517032,1.7791802,2488.3,2488.2,0.80316]
[1749239517334,0.80323,2488.1,2488.0,4.01105]
[1749239517531,0.80323,2488.1,2488.0,4.67475]
[1749239518233,1.77903124,2488.1,2488.0,4.67475]
[1749239518635,0.80323,2488.1,2488.0,4.67475]
[1749239519241,0.8032,2488.2,2488.1,0.8032]
[1749239519535,1.7787702,2488.2,2488.1,0.8032]
[1749239520642,0.9755702,2488.2,2488.1,0.8032]
[1749239520845,0.80319,2488.3,2488.2,0.80318]
[1749239521037,1.77944362,2488.3,2488.2,0.80318]
[1749239522437,0.80323,2488.1,2488.0,4.67475]
[1749239522644,0.80323,2488.1,2488.0,3.8715]
[1749239523039,1.77974725,2488.1,2488.0,3.2078]
[1749239523646,3.09024725,2488.1,2488.0,3.2078]
[1749239525339,27.02624725,2488.1,2488.0,3.2078]
[1749239526050,0.80329,2487.9,2487.8,107.5107]
[1749239526444,1.77945792,2487.9,2487.8,107.5107]
[1749239526642,2.14109,2487.9,2487.8,107.5107]
[1749239527242,3.11702269,2487.9,2487.8,107.5107]
[1749239528350,8.11702269,2487.9,2487.8,107.5107]
[1749239528546,3.11702269,2487.9,2487.8,107.5107]
[1749239528943,27.05302269,2487.9,2487.8,107.5107]
[1749239529352,32.05302269,2487.9,2487.8,107.5107]
[1749239529639,3.11702269,2487.9,2487.8,107.5107]
[1749239530040,1.77922269,2487.9,2487.8,107.5107]
[1749239530243,2.0752,2488.3,2487.8,107.5107]
[1749239530443,0.80326,2488.0,2487.9,0.6762]
[1749239531739,20.87802,2488.2,2487.8,107.5107]
[1749239531945,0.80329,2487.9,2487.8,107.5107]
[1749239533946,0.80329,2487.9,2487.8,108.31402]
[1749239535148,18.858,2488.3,2487.8,107.5107]
[1749239535353,0.80323,2488.2,2488.1,0.80321]
[1749239535544,0.80318,2488.3,2488.2,0.80316]
[1749239536045,0.80316,2488.4,2488.3,0.80314]
[1749239536351,0.80316,2488.4,2488.3,5.29774]
[1749239536552,0.80913216,2488.5,2488.4,0.80313]
[1749239536852,0.00602216,2488.5,2488.4,2.08993]
[1749239537051,0.00602216,2488.5,2488.4,7.08993]
[1749239538754,2.15e-06,2488.5,2488.4,25.94793]
[1749239539752,2.15e-06,2488.5,2488.4,2.08993]
[1749239540346,2.15e-06,2488.5,2488.4,7.08993]
[1749239542853,3.896,2490.2,2488.7,4.01506]
[1749239543052,3.896,2490.2,2489.9,3.2078]
[1749239543053,1.9543,2490.2,2489.9,3.2078]
[1749239543250,2.64944,2490.4,2490.0,0.80261]
[1749239543251,0.80261,2490.1,2490.0,0.80261]
[1749239543563,0.80261,2490.0,2489.9,4.01042]
[1749239543851,0.80261,2490.0,2489.9,3.2078]
[1749239545051,0.80268,2489.8,2489.7,1.48532216]
[1749239545457,0.80268,2489.8,2489.7,0.68262216]
[1749239546454,0.80268,2489.8,2489.7,1.48533216]
[1749239546952,3.27259,2490.1,2489.9,0.80264]
[1749239546953,0.80264,2490.0,2489.9,0.80264]
[1749239547258,0.80266,2489.9,2489.8,0.80265]
[1749239547460,0.80268,2489.8,2489.7,1.48530216]
[1749239547658,0.80266,2489.9,2489.8,0.80265]
[1749239547959,1.2661,2490.1,2489.7,0.68262216]
[1749239548158,1.2661,2490.1,2489.7,1.48531216]
[1749239548362,0.80267,2489.9,2489.8,0.80268]
[1749239548562,0.80264,2490.0,2489.7,0.68262216]
[1749239548764,0.80264,2490.0,2489.9,0.80265]
[1749239549559,1.2661,2490.1,2490.0,0.80262]
[1749239549865,0.00602216,2490.2,2489.9,3.2078]
[1749239550062,0.80262,2490.0,2489.9,4.01043]
[1749239550463,0.80262,2490.0,2489.9,4.01041]
[1749239550658,0.80261,2490.1,2490.0,0.8026]
[1749239552464,0.80262,2490.0,2489.9,4.01042]
[1749239555065,0.80265,2489.9,2489.8,0.6871]
[1749239555269,0.80268,2489.8,2489.7,0.00602216]
[1749239555573,0.80294,2489.1,2489.0,3.2078]
[1749239555775,2.00711,2489.3,2488.7,2.00754]
[1749239555776,0.80297,2488.9,2488.8,0.80298]
[1749239556067,0.803,2488.8,2488.7,3.2078]
[1749239557267,1.3749,2489.0,2488.7,3.2078]
[1749239557459,1.3749,2489.0,2488.8,0.80299]
[1749239557665,0.80299,2488.9,2488.8,0.80299]
[1749239557869,0.803,2488.8,2488.7,4.01081]
[1749239558175,0.803,2488.8,2488.7,3.2078]
[1749239559971,0.80299,2488.9,2488.8,0.80299]
[1749239560171,2.07479,2488.9,2488.8,0.80299]
[1749239560367,1.2718,2488.9,2488.8,0.80299]
[1749239560566,0.6293,2489.1,2489.0,0.80294]
[1749239560772,1.43221,2489.1,2489.0,3.2078]
[1749239560976,2.70401,2489.1,2489.0,3.2078]
[1749239561274,1.9011,2489.1,2489.0,4.01074]
[1749239561576,2.70401,2489.1,2489.0,3.2078]
[1749239562176,1.9011,2489.1,2489.0,4.01074]
[1749239562470,5.01,2489.3,2489.2,0.80287]
[1749239562675,0.80283,2489.4,2489.3,0.80282]
[1749239562875,0.80284,2489.4,2489.3,0.80283]
[1749239563284,0.80284,2489.4,2489.0,5.84454]
[1749239563285,0.8028,2489.5,2489.4,0.80279]